Workbook

Sheet Лист1
M1: Додаток 2
M2: до рішення виконкому міської ради
P3: 04.12.2023 №1487
A4: Перелік завдань і заходів Програми розвитку та утримання житлово-комунального господарства міста на період 2017–2026 років
A7: № п/п | B7: Назва напряму діяльності (пріори-тетні завдання) | C7: Перелік заходів програми | D7: Строк, роки | E7: Виконавці | F7: Джерела фінансу-вання | G7: Орієнтовні обсяги потреби в фінансуванні (вартість), тис. грн, у тому числі: | R7: Очікуваний результат
G9: 2017 рік | H9: 2018 рік | I9: 2019 рік | J9: 2020 рік | K9: 2021 рік | L9: 2022 рік | M9: 2023 рік | N9: 2024 рік | O9: 2025 рік | P9: 2026 рік | Q9: Усього
A11: 1 | B11: 2 | C11: 3 | D11: 4 | E11: 5 | F11: 6 | G11: 7 | H11: 8 | I11: 9 | J11: 10 | K11: 11 | L11: 12 | M11: 13 | N11: 14 | O11: 15 | P11: 16 | Q11: 17 | R11: 18
A12: 1 | B12: Утри-мання, ремонт, рекон-струкція жит-лового фонду | C12: 1.1. Капіталь-ний ремонт ліфтів | D12: 2017-2026 | E12: Департамент розвитку інф-раструктури міста виконкому Криворізької міської ради, одержувачі коштів, одержувачі коштів | F12: Бюджет Криворізької міської територіальної громади | G12: =20000+8000+10000 -> 38000 | H12: 74700 | I12: 100000 | J12: 200000 | K12: 240000 | L12: 290000 | M12: 149930 | N12: 150000 | O12: 150000 | P12: 150000 | Q12: =SUM(G12:P12) -> 1542630 | R12: Гарантування умов безпеч-ного та комфо-ртного про-живання насе-лення. Надання об'єднанням співвласників багатоквартир-ного будинку передбаченої чинним зако-нодавством Ук-раїни технічної та/ або іншої документації на житлові бу-динки. Безпечне користування ліфтами меш-канцями бага-токвартирних будинків, їх належна технічна експлуатація та безперебійна ро-бота. Продовження терміну експлуатації ліфтів. Заміна табличок з назвами
C13: 1.2. Експертне обстеження ліфтів | D13: 2017-2026 | F13: =F12 -> Бюджет Криворізької міської територіальної громади | G13: 100 | H13: 120 | I13: 150 | J13: 100 | K13: 120 | L13: 150 | M13: 150 | N13: 150 | O13: 150 | P13: 150 | Q13: =SUM(G13:P13) -> 1340
C14: 1.3. Капіталь-ний, поточний ремонт, утримання та реконструкція житлового фонду | D14: 2017-2026 | F14: =F12 -> Бюджет Криворізької міської територіальної громади | G14: 50000 | H14: =55000-1700 -> 53300 | I14: 60000 | J14: 20000 | K14: 45000 | L14: 80000 | M14: 20000 | N14: 50000 | O14: 50000 | P14: 50000 | Q14: 478300
D15: 2017-2026 | F15: Власні надхо-дження | G15: 200 | H15: 200 | I15: 200 | J15: 50 | K15: 40 | L15: 30 | M15: 1.5 | N15: 0 | O15: 0 | P15: 0 | Q15: 721.5
C16: 1.4. Охорона об'єктів житлового фонду | D16: 2017-2026 | F16: =F14 -> Бюджет Криворізької міської територіальної громади | G16: 780 | H16: 1000 | I16: 1500 | J16: 1700 | K16: 2200 | L16: 2100 | M16: 0 | N16: 0 | O16: 0 | P16: 0 | Q16: 9280
C17: 1.5. Заміна адресних вивісок | D17: 2017-2026 | F17: =F16 -> Бюджет Криворізької міської територіальної громади | G17: 1500 | H17: 0 | I17: 0 | J17: 600 | K17: 600 | L17: 600 | M17: 600 | N17: 500 | O17: 500 | P17: 500 | Q17: 5400
C18: 1.6. Заходи з виконання доручень виборців депутатами Дніпро-петровської обласної ради | D18: 2017-2026 | F18: Субвенція з обласного бюджету бюджетам міст, районів та об’єднанням територіальних громад на виконання доручень виборців | G18: 2000 | H18: 2000 | I18: 3290 | J18: * | K18: * | L18: * | M18: * | N18: * | O18: * | P18: * | Q18: 7290
Q19: Продовження додатка 2
A20: 1 | B20: 2 | C20: 3 | D20: 4 | E20: 5 | F20: 6 | G20: 7 | H20: 8 | I20: 9 | J20: 10 | K20: 11 | L20: 12 | M20: 13 | N20: 14 | O20: 15 | P20: 16 | Q20: 17 | R20: 18
F21: депутатами обласної ради | R21: топонімів на будинках на нові
F22: =F27 -> Бюджет Криворізької міської територіальної громади | G22: 2000 | H22: 2000 | I22: 2000 | J22: 0 | K22: 0 | L22: 0 | M22: 0 | N22: 0 | O22: 0 | P22: 0 | Q22: =G22+H22+I22+J22+K22+L22+M22+N22+O22+P22 -> 6000
C23: 1.7. Фінансу-вання пере-можців обласного конкурсу мікропроєктів з енергоефек-тивності та енергозбере-ження серед органів самоорганізації населення й ОСББ | D23: 2017-2026 | F23: Субвенція з обласного бюджету до місцевих бюджетів на фінансування переможців обласного конкурсу мік-ропроєктів з енергоефек-тивності та енерго-збереження серед органів самоорга-нізації населення та ОСББ | G23: 50 | H23: 200 | I23: 499.17 | J23: * | K23: * | L23: * | M23: * | N23: * | O23: * | P23: * | Q23: =G23+H23+I23 -> 749.17 | R23: Підвищення рівня надання населенню житлово-кому-нальних послуг відповідно до вимог національних стандартів, гармонізованих з міжнародними або регіональними
H24: 0 | I24: 0
H25: 0 | I25: 0
C26: 1.8. Послуги з приєднання електроуста-новок до електричних мереж | D26: 2017 | F26: =F16 -> Бюджет Криворізької міської територіальної громади | G26: 120 | H26: 0 | I26: 0 | J26: 0 | K26: 0 | L26: 0 | M26: 0 | N26: 0 | O26: 0 | P26: 0 | Q26: =G26+H26+I26+J26+K26+L26+M26+N26+O26+P26 -> 120
C27: 1.9. Створення належних умов для проживання внутрішньо-переміщених осіб у гурто-житках міста | D27: 2021 | F27: =F26 -> Бюджет Криворізької міської територіальної громади | G27: 0 | H27: 0 | I27: 0 | J27: 0 | K27: 272.15 | L27: 0 | M27: 0 | N27: 0 | O27: 0 | P27: 0 | Q27: =G27+H27+I27+J27+K27+L27+M27+O27+N27+P27 -> 272.15
C28: 1.10. Заходи (ремонтні роботи) з усунення аварій у житловому фонді | D28: 2022-2026 | E28: Одержувачі коштів | F28: =F27 -> Бюджет Криворізької міської територіальної громади | G28: 0 | H28: 0 | I28: 0 | J28: 0 | K28: 0 | L28: 500 | M28: 3000 | N28: 0 | O28: 0 | P28: 0 | Q28: =G28+H28+I28+J28+K28+L28+M28+N28+O28+P28 -> 3500
A29: Усього | F29: =F27 -> Бюджет Криворізької міської територіальної громади | G29: =G12+G13+G14+G16+G17+G22+G26+G27 -> 92500 | H29: =H12+H13+H14+H16+H17+H22+H26+H27 -> 131120 | I29: =I12+I13+I14+I16+I17+I22+I26+I27 -> 163650 | J29: =J12+J13+J14+J16+J17+J22+J26+J27 -> 222400 | K29: =K12+K13+K14+K16+K17+K22+K26+K27 -> 288192.15 | L29: =L12+L13+L14+L16+L17+L22+M26+L27+L28 -> 373350 | M29: =M28+M27+M26+M22+M17+M16+M14+M13+M12 -> 173680 | N29: =N28+N27+N26+N22+N17+N16+N14+N13+N12 -> 200650 | O29: 200650 | P29: 200650 | Q29: =SUM(G29:P29) -> 2046842.15
F30: Власні надхо-дження | G30: =G15 -> 200 | H30: 200 | I30: 200 | J30: 50 | K30: 40 | L30: 30 | M30: 1.5 | N30: 0 | O30: 0 | P30: 0 | Q30: =SUM(G30:P30) -> 721.5
F31: Субвенція з обласного бюджету бюджетам міст, районів та об’єднанням територіальних громад на виконання доручень виборців депутатами обласної ради | G31: =G18 -> 2000 | H31: 2000 | I31: 3290 | J31: * | K31: * | L31: * | M31: * | N31: * | O31: * | P31: * | Q31: =G31+H31+I31 -> 7290
F32: Субвенція з обласного бюджету до місцевих бюджетів на фінансування переможців обласного конкурсу мікропроєктів з енергоефек- тивності та енерго-збереження серед органів самоорганізації населення та ОСББ | G32: =G23 -> 50 | H32: =H23 -> 200 | I32: =I23 -> 499.17 | J32: * | K32: * | L32: * | M32: * | N32: * | O32: * | P32: * | Q32: =G32+H32+I32 -> 749.17
A35: 2 | B35: Комуналь-не майно | C35: 2.1. Оформ-лення висно-вку спеціалі-зованої органі-зації про мож-ливість (немо-жливість) подальшої експлуатації основних засобів, інших необоротних | D35: 2017-2026 | E35: Департамент розвитку інф-раструктури міста виконкому Криворізької міської ради | F35: =F27 -> Бюджет Криворізької міської територіальної громади | G35: 15 | H35: 15 | I35: 15 | J35: 20 | K35: 74 | L35: 200 | M35: 282.5 | N35: 150 | O35: 0 | P35: 0 | Q35: =SUM(G35:P35) -> 771.5 | R35: Реалізація заходів з упорядкування об҆єктів, що перебувають на балансовому обліку департаменту розвитку інфаструктури міста виконкому
C36: матеріальних активів, проведення експертиз | R36: Криворізької міської ради . Забезпечення діяльності департаменту розвитку інфаструктури міста виконкому Криворізької міської ради в межах повноважень
C37: 2.2. Інвентари-зація, технічна інвентаризація, оцінка майна, технічне обстеження об’єктів нерухомого майна та об’єктів (елементів) благоустрою з виготовленням технічного паспорта та технічного висновку, оформлення довідок на об’єкти нерухомго майна | D37: 2017-2026 | F37: =F35 -> Бюджет Криворізької міської територіальної громади | G37: 725 | H37: 725 | I37: 725 | J37: =400+11.66 -> 411.66 | K37: 400 | L37: 650 | M37: 250 | N37: 1200 | O37: 0 | P37: 0 | Q37: =G37+H37+I37+J37+K37+L37+M37+N37+O37+P37 -> 5086.66
C39: 2.3. Знесення (розбирання) об'єктів нерухомого майна | D39: 2017-2026 | F39: =F37 -> Бюджет Криворізької міської територіальної громади | G39: 1000 | H39: 750 | I39: 500 | J39: 2000 | K39: 4000 | L39: 3000 | M39: 800 | N39: 0 | O39: 0 | P39: 0 | Q39: =G39+H39+I39+J39+K39+L39+M39+N39+O39+P39 -> 12050
C40: 2.4. Придбан-ня в комуна-льну власність житла для надання в тимчасове користування внутрішньо переміщеним особам та послуги з оформлення відповідних документів | D40: 2018 | F40: Субвенція з де-ржавного бюд-жету місцевим бюджетам на здійснення за-ходів щодо під-тримки терито-рій, що зазнали негативного впливу внаслі-док збройного конфлікту на сході України | G40: 0 | H40: 2000 | I40: 0 | J40: 0 | K40: 0 | L40: 0 | M40: 0 | N40: 0 | O40: 0 | P40: 0 | Q40: =SUM(G40:P40) -> 2000
D41: 2018 | F41: =F37 -> Бюджет Криворізької міської територіальної громади | G41: 0 | H41: =2140 -> 2140 | I41: 0 | J41: 0 | K41: 0 | L41: 0 | M41: 0 | N41: 0 | O41: 0 | P41: 0 | Q41: =SUM(G41:P41) -> 2140
C42: 2.5. Сплата земельного податку | D42: 2017 | F42: Власні надхо-дження | G42: 500 | H42: 600 | I42: 700 | J42: 700 | K42: 2000 | L42: 250 | M42: 130 | N42: 0 | O42: 0 | P42: 0 | Q42: =SUM(G42:P42) -> 4880
F43: =F41 -> Бюджет Криворізької міської територіальної громади | G43: =547.35+94.47 -> 641.82 | H43: 0 | I43: 0 | J43: 0 | K43: 0 | L43: 0 | M43: 0 | N43: 188 | O43: 200 | P43: 200 | Q43: =SUM(G43:P43) -> 1229.82
C44: 2.6. Витрати, пов'язані із судовими процесами,ог-олошеннями за судовими справами, послугами з питань патентування та авторського права, юридичними та поштовими послугами | D44: 2017-2026 | F44: =F43 -> Бюджет Криворізької міської територіальної громади | G44: 40 | H44: 40 | I44: 40 | J44: 20 | K44: =50+40 -> 90 | L44: 700 | M44: 1135 | N44: 1000 | O44: 0 | P44: 0 | Q44: =SUM(G44:P44) -> 3065
C45: 2.7. Висвітлен-ня діяльності департаменту розвитку інфра-структури міс-та виконкому Криворізької міської ради в засобах масо-вої інформації | D45: 2017-2026 | F45: =F44 -> Бюджет Криворізької міської територіальної громади | G45: 190 | H45: 190 | I45: 190 | J45: 190 | K45: 199 | L45: 190 | M45: 53.9 | N45: 100 | O45: 100 | P45: 100 | Q45: =G45+H45+I45+J45+K45+L45+M45+N45+O45+P45 -> 1502.9
C47: 2.8. Реєстрація та перереєстра-ція спеціальної технік, автотранс-порту (узяття на облік та зняття з нього) | D47: 2017-2026 | E47: Департамент розвитку інф-раструктури міста виконкому Криворізької міської ради, виконавчий комітет Криворізької міської ради | F47: =F45 -> Бюджет Криворізької міської територіальної громади | G47: 10 | H47: 10 | I47: 10 | J47: 11 | K47: 50 | L47: 25 | M47: 25 | N47: 0 | O47: 0 | P47: 0 | Q47: =G47+H47+I47+J47+K47+L47+M47 -> 141
C48: 2.9. Послуги з розробки про-ектів землеуст-рою щодо від-ведення земельних ділянок у постійне користування під об´єкти нерухомості | D48: 2017-2026 | F48: Бюджет Криворізької міської територіальної громади | G48: 0 | H48: 0 | I48: 150 | J48: 150 | K48: 100 | L48: 100 | M48: 100 | N48: 0 | O48: 0 | P48: 0 | Q48: =G48+H48+I48+J48+K48+L48+M48 -> 600
C49: 2.10. Прид-бання техніки та обладнання, предметів довгостроко-вого користу-вання | D49: 2020 | F49: Бюджет Криворізької міської територіальної громади | G49: 0 | H49: 0 | I49: 0 | J49: 16000.8 | K49: 0 | L49: 0 | M49: 0 | N49: 0 | O49: 0 | P49: 0 | Q49: =G49+H49+I49+J49+K49+L49+M49 -> 16000.8
A50: Усього | F50: Бюджет Криворізької міської територіальної громади | G50: =G35+G36+G37+G39+G41+G43+G44+G45+G47+G48+G49 -> 2621.82 | H50: =H35+H36+H37+H39+H41+H43+H44+H45+H47+H48+H49 -> 3870 | I50: =I35+I36+I37+I39+I41+I43+I44+I45+I47+I48+I49 -> 1630 | J50: =J35+J36+J37+J39+J41+J43+J44+J45+J47+J48+J49 -> 18803.46 | K50: =K35+K36+K37+K39+K41+K43+K44+K45+K47+K48+K49 -> 4913 | L50: =L35+L36+L37+L39+L41+L43+L44+L45+L47+L48+L49 -> 4865 | M50: 2646.4 | N50: 2638 | O50: 300 | P50: 300 | Q50: =SUM(G50:P50) -> 42587.68 | R50: =SUM(Q35:Q49)-Q40-Q42 -> 42587.68
F51: Власні надхо-дження | G51: =G42 -> 500 | H51: 600 | I51: 700 | J51: 700 | K51: 2000 | L51: 250 | M51: 130 | N51: =N42 -> 0 | O51: =O42 -> 0 | P51: 0 | Q51: =SUM(G51:P51) -> 4880
F52: Субвенція з державного бюджету місцевим бюджетам на здійснення за- ходів щодо підтримки територій, що зазнали негативного впливу внаслідок збройного конфлікту на сході України впливу внаслідок збройного конфлікту на сході Укрваїни | G52: =G40 -> 0 | H52: 2000 | I52: 0 | J52: 0 | K52: 0 | L52: 0 | M52: 0 | N52: =N40 -> 0 | O52: 0 | P52: =P40 -> 0 | Q52: 2000
A54: 3 | B54: Санітарна очистка міста | C54: 3.1. Оформлен-ня права корис-тування земе-льними ділян-ками під полі-гонами звалищ сміття міста | D54: 2017-2021 | E54: Департамент розвитку інф-раструктури міста виконкому Криворізької міської ради | F54: =F50 -> Бюджет Криворізької міської територіальної громади | G54: 190 | H54: 0 | I54: 0 | J54: 1000 | K54: 1000 | L54: 0 | M54: 0 | N54: 0 | O54: 0 | P54: 0 | Q54: =SUM(G54:P54) -> 2190 | R54: Покращення еко-логічної ситуації в місті (санітарне очищення)
C55: 3.2. Розробка проєктно-кошторисної документації на рекультивацію полігону для складування твердих побутових відходів | D55: 2022 | F55: Бюджет Криворізької міської територіальної громади | G55: 0 | H55: 0 | I55: 0 | J55: 0 | K55: 0 | L55: 1000 | M55: 0 | N55: 0 | O55: 0 | P55: 0 | Q55: =SUM(G55:P55) -> 1000
C56: 3.3. Ліквідація стихійних звалищ | D56: 2017-2026 | F56: =F54 -> Бюджет Криворізької міської територіальної громади | G56: 190 | H56: 300 | I56: 1261 | J56: 1000 | K56: 1500 | L56: 2000 | M56: 0 | N56: 0 | O56: 0 | P56: 0 | Q56: =SUM(G56:P56) -> 6251
C57: 3.4.Придбання та ремонт кон-тейнерних систем для розміщення контейнерів для збору твердих побутових відходів | D57: 2018-2026 | F57: =F56 -> Бюджет Криворізької міської територіальної громади | G57: 0 | H57: 2500 | I57: 5000 | J57: 15000 | K57: 15000 | L57: 15000 | M57: 13860 | N57: 13000 | O57: 0 | P57: 0 | Q57: =G57+H57+I57+J57+K57+L57+M57+N57+O57+P57 -> 79360
C58: 3.5. Утри-мання, поточний, капітальний ремонт контейнерних майданчиків | D58: 20120-2023 | F58: =F57 -> Бюджет Криворізької міської територіальної громади | G58: 0 | H58: 0 | I58: 0 | J58: 15000 | K58: 15000 | L58: 20000 | M58: 0 | N58: 0 | O58: 0 | P58: 0 | Q58: =SUM(G58:P58) -> 50000
C59: 3.6. Коригу-вання схеми санітарної очистки міста | D59: 2021-2026 | F59: Бюджет Криворізької міської територіальної громади | G59: 0 | H59: 0 | I59: 0 | J59: 0 | K59: 300 | L59: 320 | M59: 320 | N59: 0 | O59: 0 | P59: 0 | Q59: 940
A60: Усього | F60: Бюджет Криворізької міської територіальної громади | G60: =G59+G58+G57+G56+G55+G54 -> 380 | H60: 2800 | I60: 6261 | J60: 32000 | K60: 32800 | L60: 38320 | M60: =SUM(M54:M59) -> 14180 | N60: =N59+N58+N57+N56+N55+N54 -> 13000 | O60: =O59+O58+O57+O56+O55+O54 -> 0 | P60: 0 | Q60: 139741
A61: 4 | B61: Підтрим-ка кому-нальних підпри-ємств - надавачів послуг з теплопос-тачання, водопостачання та водовідве-дення | C61: 4.1. Фінансова підтримка | D61: 2017-2021 | E61: Департамент розвитку інф-раструктури міста виконкому Криворізької міської ради - головний роз-порядник коштів, Ко-мунальне підприємство теплових мереж «Криворіжтепломе-режа» - одержувач коштів | F61: Бюджет Криворізької міської територіальної громади | G61: 12000 | H61: 80000 | I61: =40000+4166.29+20000 -> 64166.29 | J61: =25000+12000 -> 37000 | K61: 55000 | L61: 0 | M61: 0 | N61: 0 | O61: 0 | P61: 0 | Q61: 248166.29 | R61: Економія теплової та електричної енергії, природного газу, покращення якості виконання робіт на системі тепло- постачання. Покращення якості надання послуг з водопостачання та водо- відведення. Зни-ження травма-тизму населення, запобігання нещасним випадкам. Економія енергоресурсів
C62: 4.2 Погашення заборгованос-ті за теплову енергію | D62: 2022 | F62: Бюджет Криворізької міської територіальної громади | G62: 0 | H62: 0 | I62: 0 | J62: 0 | K62: 0 | L62: 75000 | M62: 0 | N62: 0 | O62: 0 | P62: 0 | Q62: 75000
C63: 4.3. Придбан-ня теплоізо-ляційних матеріалів | D63: 2017-2026 | F63: =F61 -> Бюджет Криворізької міської територіальної громади | G63: 5000 | H63: 5000 | I63: 5000 | J63: 0 | K63: 3000 | L63: 3000 | M63: 3000 | N63: 0 | O63: 0 | P63: 0 | Q63: 24000
C64: 4.4. Придбан-ня блочних автоматизова-них пальників з частотними перетворюва-чами | D64: 2017-2019 | F64: Бюджет Криворізької міської територіальної громади | G64: 5000 | H64: 6000 | I64: 5000 | J64: 0 | K64: 0 | L64: 0 | M64: 0 | N64: 0 | O64: 0 | P64: 0 | Q64: =G64+H64+I64+J64+K64+L64+M64 -> 16000
C66: 4.5. Реконст-рукція схеми теплопоста-чання | D66: 2017 | F66: =F64 -> Бюджет Криворізької міської територіальної громади | G66: 1500 | H66: 0 | I66: 0 | J66: 0 | K66: 0 | L66: 0 | M66: 0 | N66: 0 | O66: 0 | P66: 0 | Q66: =G66+H66+I66+J66+K66+L66+M66 -> 1500
C67: 4.6. Демонтаж димової труби котельні «Прорізна, 87» | D67: 2017 | F67: Бюджет Криворізької міської територіальної громади | G67: 1500 | H67: 0 | I67: 0 | J67: 0 | K67: 0 | L67: 0 | M67: 0 | N67: 0 | O67: 0 | P67: 0 | Q67: =G67+H67+I67+J67+K67+L67+M67 -> 1500
C68: 4.7. Поповнен-ня статутного капіталу на придбання спецтехніки, обладнання та предметів довгостроко-вого користування | D68: 2018-2026 | F68: Бюджет Криворізької міської територіальної громади | G68: =1420+2450 -> 3870 | H68: 0 | I68: 0 | J68: 0 | K68: 2500 | L68: =5000+37000 -> 42000 | M68: =64800+10360 -> 75160 | N68: 0 | O68: 0 | P68: 0 | Q68: =G68+H68+I68+J68+K68+L68+M68+N68+O68+P68 -> 123530
C69: 4.8. Оснащен-ня вузлами комерційного обліку те-плової енергії житлових будинків, приєднаних до зовнішніх інженерних мереж | D69: 2019-2026 | F69: Бюджет Криворізької міської територіальної громади | G69: 0 | H69: 18235 | I69: 12752.19 | J69: 0 | K69: 0 | L69: 0 | M69: 0 | N69: 0 | O69: 0 | P69: 0 | Q69: =G69+H69+I69+J69+K69+L69+M69 -> 30987.19
C71: 4.9. Поповнен-ня статутного капіталу на ви-конання робіт з будівництва, реконструкції, капітального ремонту коте-лень та тепло-вих мереж | D71: 2017-2026 | F71: =F67 -> Бюджет Криворізької міської територіальної громади | G71: 0 | H71: 0 | I71: 10000 | J71: 0 | K71: 35000 | L71: 18000 | M71: 18000 | N71: 0 | O71: 0 | P71: 0 | Q71: =G71+H71+I71+J71+K71+L71+M71+N71+O71+P71 -> 81000
C72: 4.10. Придбан-ня матеріалів, обладнання (устаткування) для виконання робіт з буді-вництва, реко-нструкції, капі-тального та поточного | D72: 2022-2026 | F72: =F68 -> Бюджет Криворізької міської територіальної громади | G72: 0 | H72: 0 | I72: 0 | J72: 0 | K72: 0 | L72: 10000 | M72: 10000 | N72: 0 | O72: 0 | P72: 0 | Q72: =G72+H72+I72+J72+K72+L72+M72 -> 20000
C73: ремонту котелень та теплових мереж
C74: 4.11. Заходи щодо врегулю-вання проблем-них питань в опалювальний період 2021/ 2022 років, пов'язані з різ-ким зростан-ням цін на енергоресурси | D74: 2021-2022 | F74: =F72 -> Бюджет Криворізької міської територіальної громади | G74: 0 | H74: 0 | I74: 0 | J74: 0 | K74: 20500 | L74: 27000 | M74: 0 | N74: 0 | O74: 0 | P74: 0 | Q74: =G74+H74+I74+J74+K74+L74+M74 -> 47500
C75: 4.12. Оплата праці та енергоносіїв (електроенер-гія, вода тощо) | D75: 2022-2026 | F75: =F74 -> Бюджет Криворізької міської територіальної громади | G75: 0 | H75: 0 | I75: 0 | J75: 0 | K75: 0 | L75: =30000+18000 -> 48000 | M75: =100000 -> 100000 | N75: 0 | O75: 0 | P75: 0 | Q75: =G75+H75+I75+J75+K75+L75+M75+N75+O75+P75 -> 148000
C76: 4.13.Придбан-ня обладнання та предметів довгостроко-вого користу-вання (транс-портних засо-бів, спецтех-ніки та спеціа-лізованої техні-ки, устаткуван-ня, обладнан-ня, пристроїв тощо) для здійснення заходів з енергозбе-реження | D76: 2022-2026 | F76: =F75 -> Бюджет Криворізької міської територіальної громади | G76: 0 | H76: 0 | I76: 0 | J76: 0 | K76: 0 | L76: 14860 | M76: 20000 | N76: 0 | O76: 0 | P76: 0 | Q76: =G76+H76+I76+J76+K76+L76+M76 -> 34860
C78: 4.14. Придбан-ня обладнання та предметів довгостроко-вого користу-вання (транс-портних засо- | D78: 2022 | F78: =F76 -> Бюджет Криворізької міської територіальної громади | G78: 0 | H78: 0 | I78: 0 | J78: 0 | K78: 0 | L78: 17600 | M78: 0 | N78: 0 | O78: 0 | P78: 0 | Q78: =G78+H78+I78+J78+K78+L78+M78 -> 17600
C79: бів, спецтех-ніки та спеціа-лізованої техні-ки, устаткуван-ня, обладнан-ня, пристроїв тощо)
C80: 4.15. Заходи, у тому числі з енергозбереже-ння, на об'єктах теплопостачан-ня комунальної власності міста Кривого Рогу в умовах збройної агресії Російської Федерації проти України | D80: 2023-2026 | F80: Субвенція з обласного бю-джету для здій-снення заходів, в тому числі з енергозбереже-ння, на об'єк-тах теплопоста-чання комуна-льної власності міста Кривого Рогу в умовах збройної агре-сії Російської Федерації проти України | G80: 0 | H80: 0 | I80: 0 | J80: 0 | K80: 0 | L80: 0 | M80: 300000 | N80: 300000 | O80: 0 | P80: 0 | Q80: =M80 -> 300000
C81: 4.16. Оплата праці та енергоносіїв (електроенер-гія, вода тощо) | D81: 2017-2026 | E81: Департамент розвитку інф-раструктури міста виконкому Криворізь-кої міської ради - головний роз-порядник коштів, Комунальне підприємс-тво «Кри-вбасводо-канал» - одержувач коштів | F81: =F72 -> Бюджет Криворізької міської територіальної громади | G81: 30000 | H81: 30000 | I81: 30000 | J81: 0 | K81: 0 | L81: =90000+12000+28000+8000+15000 -> 153000 | M81: =80000+50000 -> 130000 | N81: 0 | O81: 0 | P81: 0 | Q81: =G81+H81+I81+J81+K81+L81+M81+N81+O81+P81 -> 373000 | R81: Покращення якості надання послуг з водо-постачання та водовідведення. Зниження тра-вматизму насе-лення, запобі-гання нещасним випадкам. Еко-номія ресурсів
C82: 4.17. Придбан-ня кришок люків | D82: 2017-2026 | F82: =F72 -> Бюджет Криворізької міської територіальної громади | G82: 2000 | H82: 2000 | I82: 2000 | J82: 1000 | K82: =J82*1.05 -> 1050 | L82: =K82*1.05 -> 1102.5 | M82: 500 | N82: 600 | O82: 700 | P82: 700 | Q82: =G82+H82+I82+J82+K82+L82+M82+N82+O82+P82 -> 11652.5
C83: 4.18. Послуги щодо фінан-сового лізингу на придбання спецтехніки | D83: 2017-2019 | F83: =F82 -> Бюджет Криворізької міської територіальної громади | G83: 14658.87 | H83: 37280.59 | I83: 20963.5 | J83: 0 | K83: 0 | L83: 0 | M83: 0 | N83: 0 | O83: 0 | P83: 0 | Q83: =G83+H83+I83+J83+K83+L83+M83 -> 72902.96
C84: 4.19. Капіталь-ний ремонт, будівництво, реконструкція мереж водо-постачання та водовідве-дення | D84: 2017-2026 | F84: =F83 -> Бюджет Криворізької міської територіальної громади | G84: 62408.8 | H84: 0 | I84: 6476 | J84: =7026.77+1000+1000 -> 9026.77 | K84: 15000 | L84: 20000 | M84: 20000 | N84: 0 | O84: 0 | P84: 0 | Q84: 132911.57
C85: 4.20. Прид-бання мате-ріалів, облад-нання (уста-ткування) для виконання ка-пітальних ре-монтів, будів-ництва, реконс-трукції мереж і споруд водопостачан-ня та водо-відведення | D85: 2017-2026 | F85: =F84 -> Бюджет Криворізької міської територіальної громади | G85: 10520 | H85: 13000 | I85: 17000 | J85: =3000+267 -> 3267 | K85: =J85*1.05 -> 3430.35 | L85: 5000 | M85: 5000 | N85: 400 | O85: 0 | P85: 0 | Q85: =G85+H85+I85+J85+K85+L85+M85+N85+O85+P85 -> 57617.35
C86: 4.21. Попов-нення статут-ного капіталу на придбання спецтехніки, обладнання та предметів до-вгостроково-го користування | D86: 2017-2026 | F86: Бюджет Криво-різької міської територіальної громади | G86: 12398.84 | H86: 0 | I86: 0 | J86: 0 | K86: 0 | L86: =10000+3000+52000 -> 65000 | M86: =48965+37800+1980 -> 88745 | N86: 15000 | O86: 0 | P86: 0 | Q86: =G86+H86+I86+J86+K86+L86+M86+N86+O86+P86 -> 181143.84
C87: 4.22. Послуги з обслуговуван-ня підвищува-льних насосів холодної води | D87: 2017 | F87: Бюджет Криво-різької міської територіальної громади | G87: 2340 | H87: 0 | I87: 0 | J87: 0 | K87: 0 | L87: 0 | M87: 0 | N87: 0 | O87: 0 | P87: 0 | Q87: 2340
C88: 4.23. Придбан-ня пожежних гідрантів | D88: 2020-2026 | F88: =F86 -> Бюджет Криво-різької міської територіальної громади | G88: 0 | H88: 0 | I88: 0 | J88: 1000 | K88: =J88*1.05 -> 1050 | L88: =K88*1.05 -> 1102.5 | M88: 550 | N88: 1200 | O88: 1500 | P88: 1500 | Q88: =G88+H88+I88+J88+K88+L88+M88+N88+O88+P88 -> 7902.5
C89: 4.24.Придбан-ня обладнання та предметів довгостроко-вого користу-вання (транс-портних засо-бів, спецтех-ніки та спеціа-лізованої техні-ки, устаткуван-ня, обладнан-ня, пристроїв тощо) | D89: 2023-2026 | F89: Бюджет Криво-різької міської територіальної громади | G89: 0 | H89: 0 | I89: 0 | J89: 0 | K89: 0 | L89: 83000 | M89: 0 | N89: 0 | O89: 0 | P89: 0 | Q89: 83000
C90: 4.25. Заходи із забезпечення міста Кривого Рогу водо-постачанням в умовах зброй-ної агресії Російської Федерації проти України | D90: 2023-2026 | E90: Департамент розвитку інф-раструктури міста виконко-му Криворізь-кої міської ради - голов-ний розпоряд-ник коштів, Комунальне підприємство «Кривбасводо-канал» - одержувач коштів | F90: Субвенція з обласного бю-джету до бюд-жету Криворі-зької міської територіальної громади для здійснення за-ходів із забез-печення міста Кривого Рогу водопостачан-ням в умовах збройної агре-сії Російської Федерації проти України | G90: 0 | H90: 0 | I90: 0 | J90: 0 | K90: 0 | L90: 0 | M90: 100000 | N90: 0 | O90: 0 | P90: 0 | Q90: 100000 | R90: Недопущення зниження експлуатаційного рівня води у джерелі питного водопостачання міста за рахунок впровадження альтернативної моделі подачі (перекачування) обсягу води для поповнення Південного водосховища
F92: Бюджет Криворізької міської територіальної громади | G92: 0 | H92: 0 | I92: 0 | J92: 0 | K92: 0 | L92: 0 | M92: 80900 | N92: 0 | O92: 0 | P92: 0 | Q92: =M92 -> 80900
A94: Усього | F94: =F88 -> Бюджет Криво-різької міської територіальної громади | G94: =SUM(G61:G89)-G80+G92 -> 163196.51 | H94: 191515.59 | I94: 173357.98 | J94: 51293.77 | K94: 136530.35 | L94: 583665 | M94: 551855 | N94: 17200 | O94: =SUM(O61:O89)-O80+O92 -> 2200 | P94: 2200 | Q94: =SUM(G94:P94) -> 1873014.2 | T94: =SUM(G61:P89)-Q80+Q92 -> 2173014.2
F95: Субвенція з обласного бю-джету для здійснення заходів, у тому числі з енерго-збереження, на об'єктах теплопоста-чання комуна-льної власності міста Кривого Рогу в умовах збройної агре-сії Російської Федерації проти України | G95: 0 | H95: 0 | I95: 0 | J95: 0 | K95: 0 | L95: 0 | M95: =M80 -> 300000 | N95: 0 | O95: 0 | P95: 0 | Q95: =M95 -> 300000
F96: Субвенція з обласного бю-джету до бюд-жету Криворі-зької міської територіальної громади для здійснення за-ходів із забез-печення міста Кривого Рогу водопостачан-ням в умовах збройної агре-сії Російської Федерації проти України | G96: =G90 -> 0 | H96: =H90 -> 0 | I96: 0 | J96: 0 | K96: 0 | L96: 0 | M96: 100000 | N96: 0 | O96: 0 | P96: 0 | Q96: 100000
A98: 5 | B98: Заходи, пов’язані з економіч-ною дія-льністю Комуналь-ного зак-ладу «Дитячий оздоровчий табір «Перлина Кри-воріжжя» Криворізь-кої міської ради | C98: 5.1. Поповнен-ня статутного капіталу на придбання обладнання і предметів довгостроко-вого користування | D98: 2017 | E98: Департамент розвитку інф-раструктури міста виконкому Криворізької міської ради - головний роз-порядник коштів, Ко-мунальний заклад «Ди- тячий оздо-ровчий табір «Перлина Кри-воріжжя» Криворізької міської ради - одержувач коштів | F98: =F94 -> Бюджет Криво-різької міської територіальної громади | G98: =300-125.1 -> 174.9 | H98: 0 | I98: 0 | J98: 0 | K98: 0 | L98: 0 | M98: 0 | N98: 0 | O98: 0 | P98: 0 | Q98: =SUM(G98:P98) -> 174.9 | R98: Забезпечення умов для оздоровлення дітей та стабільної роботи Комунального закладу «Дитячий оздоровчий табір «Перлина Криворіжжя» Криворізької міської ради
C99: 5.2. Інші заходи, пов'язані з економічною діяльністю закладу | D99: 2017-2018 | F99: =F98 -> Бюджет Криво-різької міської територіальної громади | G99: =500-156.55 -> 343.45 | H99: =500-343.45+125.1 -> 281.65 | I99: 0 | J99: 0 | K99: 0 | L99: 0 | M99: 0 | N99: 0 | O99: 0 | P99: 0 | Q99: =G99+H99+I99+J99+K99+L99+M99 -> 625.1
A102: Усього | F102: =F99 -> Бюджет Криво-різької міської територіальної громади | G102: =G98+G99 -> 518.35 | H102: 281.65 | I102: 0 | J102: 0 | K102: 0 | L102: 0 | M102: =M99+M98 -> 0 | N102: 0 | O102: 0 | P102: 0 | Q102: =SUM(G102:M102) -> 800
A103: 6 | B103: Заходи, пов’язані з економіч-ною дія-льністю Комуналь-ного під-приємства «Кривбас-теплоенер-го» Криворізь-кої міської ради | C103: 6.1. Заходи, пов´язані з за-лученням кре-дитних ресур-сів на впрова-дження проєк-тів з енерго-ефективності | D103: 2017-2019 | E103: Департамент розвитку інф-раструктури міста виконкому Криворізь-кої міської ради -головний розпоря-дник коштів, Комунальне підприємство «Кривбастеп-лоенерго» Криворізької міської ради - одержувач коштів | F103: =F102 -> Бюджет Криво-різької міської територіальної громади | G103: 1000 | H103: 1000 | I103: 1000 | J103: 0 | K103: 0 | L103: 0 | M103: 0 | N103: 0 | O103: 0 | P103: 0 | Q103: =SUM(G103:M103) -> 3000 | R103: Реалізація програм пріоритетних інвестицій для підвищення енергоефектив-ності грома-дських будівель
C105: 6.2. Поповнен-ня статутного капіталу на придбання обладнання і предметів дов-гострокового користування | D105: 2017-2020 | F105: =F103 -> Бюджет Криво-різької міської територіальної громади | G105: 100 | H105: 0 | I105: 100 | J105: 69 | K105: 0 | L105: 0 | M105: 0 | N105: 0 | O105: 0 | P105: 0 | Q105: =G105+H105+I105+J105+K105+L105+M105 -> 269
C106: 6.3. Інші заходи, пов'язані з економічною діяльністю підприємства | F106: =F105 -> Бюджет Криво-різької міської територіальної громади | G106: 0 | H106: 0 | I106: 3000 | J106: =414 -> 414 | K106: 0 | L106: 0 | M106: 0 | N106: 0 | O106: 0 | P106: 0 | Q106: =G106+H106+I106+J106+K106+L106+M106 -> 3414
C107: 6.4. Фінансова підтримка | D107: 2020-2021 | F107: =F105 -> Бюджет Криво-різької міської територіальної громади | G107: 0 | H107: 0 | I107: 0 | J107: 1000 | K107: =1980 -> 1980 | L107: 0 | M107: 0 | N107: 0 | O107: 0 | P107: 0 | Q107: =G107+H107+I107+J107+K107+L107+M107 -> 2980
C108: 6.5. Заходи з енергозбере-ження (вико-нання робіт з будівництва, реконструкції, капітального ремонту коте-лень та тепло-вих мереж) | D108: 2023-2026 | F108: Бюджет Криворізької міської територіальної громади | G108: 0 | H108: 0 | I108: 0 | J108: 0 | K108: 0 | L108: 0 | M108: =4700 -> 4700 | N108: 0 | O108: 0 | P108: 0 | Q108: =G108+H108+I108+J108+K108+L108+M108 -> 4700
A109: Усього | F109: =F108 -> Бюджет Криворізької міської територіальної громади | G109: =G103+G105 -> 1100 | H109: =H103+H105 -> 1000 | I109: =I103+I105+I106 -> 4100 | J109: =J103+J105+J106+J107+J108 -> 1483 | K109: =K107+K108 -> 1980 | L109: =L103+L105+L106 -> 0 | M109: =SUM(M103:M108) -> 4700 | N109: 0 | O109: 0 | P109: 0 | Q109: =SUM(G109:P109) -> 14363
A110: 7 | B110: Заходи, пов’язані з економіч-ною дія-льністю Комуналь-ного під-приємства «Сансер-віс» Криворізь-кої міської ради | C110: Заходи, пов'язані з реалізацією проєкту «Нове будівництво комплексу з перероблення, знешкодження та складування твердих побутових відходів у Металургійно- му районі міста Кривого Рогу Дніпропет-ровської області» | D110: 2020-2022 | E110: Департа-мент роз-витку інф-раструктури міста виконкому Криворізь-кої міської ради, Ко-мунальне підприєм-ство «Сан-сервіс» Криворізької міської ради - одержувач коштів | F110: =F109 -> Бюджет Криворізької міської територіальної громади | G110: 0 | H110: 0 | I110: 0 | J110: 300 | K110: 600 | L110: 9587.73 | M110: 0 | N110: 0 | O110: 0 | P110: 0 | Q110: =SUM(G110:M110) -> 10487.73
A112: 8 | B112: Заходи, пов'язані з попередже-нням і ліквідацією наслідків збройної агресії Російської Федерації | C112: Заходи, пов'язані з попереджен- ням і ліквіда-цією наслідків збройної агресії Російської Федерації | D112: 2023-2026 | E112: Департамент розвитку інф-раструктури міста виконкому Криворізької міської ради - головний розпорядник коштів, одержувачі коштів | F112: Бюджет Криворізької міської територіальної громади | G112: 0 | H112: 0 | I112: 0 | J112: 0 | K112: 0 | L112: 0 | M112: 60000 | N112: 90000 | O112: 0 | P112: 0 | Q112: =G112+H112+I112+J112+K112+L112+M112+N112+O112+P112 -> 150000
A113: 9 | B113: Розвиток та утриман-ня житлово-комунального господарства міста | C113: Заходи для забезпечення сталого розвитку та утримання житлово-комунального господарства міста | D113: 2023-2026 | E113: Департамент розвитку інф-раструктури міста виконкому Криворізької міської ради Виконком Криворізької міської ради | F113: Власні надходження | G113: 0 | H113: 0 | I113: 0 | J113: 0 | K113: 0 | L113: 0 | M113: 10000 | N113: 0 | O113: 0 | P113: 0 | Q113: =M113 -> 10000
A114: Усього за Програмою, у тому числі | F114: Усього | G114: =G115+G116+G117+G121+G119+G123+G125 -> 263016.68 | H114: =H115+H116+H117+H121+H119+H123+H125 -> 335387.24 | I114: =I115+I116+I117+I121+I119+I123+I125 -> 353188.98 | J114: =J115+J116+J121+J119+J123+J125 -> 327030.23 | K114: 467055.5 | L114: 1010067.73 | M114: 1217192.9 | N114: 623488 | O114: 203150 | P114: 203150 | Q114: =Q115+Q116+Q117+Q119+Q121+Q123+Q125 -> 5002727.26 | T114: =SUM(G114:P114) -> 5002727.26
F115: Бюджет Криворізької міської територіальної громади | G115: =G29+G50+G60+G94+G102+G109+G110+G112 -> 260316.68 | H115: 330587.24 | I115: 348998.98 | J115: 326280.23 | K115: 465015.5 | L115: 1009787.73 | M115: 807061.4 | N115: 323488 | O115: 203150 | P115: =P29+P50+P60+P94+P102+P109+P110+P112 -> 203150 | Q115: =Q29+Q50+Q60+Q94+Q102+Q109+Q110+Q112 -> 4277835.76 | T115: =SUM(G115:P115) -> 4277835.76
F116: Власні надхо-дження | G116: =G30+G51 -> 700 | H116: =H30+H51 -> 800 | I116: 900 | J116: 750 | K116: 2040 | L116: 280 | M116: =M30+M51+M113 -> 10131.5 | N116: =N30+N51+N113 -> 0 | O116: =O30+O51+O113 -> 0 | P116: =P30+P51+P113 -> 0 | Q116: =G116+H116+I116+J116+K116+L116+M116+N116+O116+P116 -> 15601.5
F117: Субвенція з обласного бюджету бюджетам міст, районів та об’єднанням територіальних громад на виконання дору- | G117: =G31 -> 2000 | H117: 2000 | I117: 3290 | J117: * | K117: * | L117: * | M117: * | N117: =N31 -> * | O117: * | P117: * | Q117: =G117+H117+I117 -> 7290
F118: чень виборців депутатами обласної ради
F119: Субвенція з державного бю-джету місцевим бюджетам на здійснення за-ходів щодо під-тримки терито-рій, що зазнали негативного впливу внаслі-док збройного конфлікту на сході України | G119: =G52 -> 0 | H119: 2000 | I119: 0 | J119: 0 | K119: 0 | L119: 0 | M119: 0 | N119: 0 | O119: 0 | P119: 0 | Q119: =SUM(G119:M119) -> 2000
F121: Субвенція з обласного бюджету до місцевих бюджетів на фінансування | G121: =G34 -> 0 | H121: 0 | I121: 0 | J121: 0 | K121: 0 | L121: 0 | M121: 0 | N121: 0 | O121: 0 | P121: 0 | Q121: =SUM(G121:M121) -> 0
F122: переможців обласного конкурсу мік-ропроєктів з енергоефек-тивності та енерго-збереження серед органів самоорга-нізації населення та ОСББ
F123: Субвенція з обласного бю-джету для здійснення заходів, у тому числі з енергозбереже-ння, на об'єк-тах теплопоста-чання комунальної власності міста Кривого Рогу в умовах збройної агре-сії Російської Федерації проти України | G123: =G95 -> 0 | H123: =H95 -> 0 | I123: 0 | J123: 0 | K123: 0 | L123: 0 | M123: 300000 | N123: =N80 -> 300000 | O123: 0 | P123: 0 | Q123: =Q95+N123 -> 600000
F125: Субвенція з обласного бю-джету до бюд-жету Криворі-зької міської територіальної громади для здійснення за-ходів із забез-печення міста Кривого Рогу водопостачан-ням в умовах збройної агре-сії Російської Федерації проти України | G125: 0 | H125: 0 | I125: 0 | J125: 0 | K125: 0 | L125: 0 | M125: 100000 | N125: 0 | O125: 0 | P125: 0 | Q125: 100000
A128: Керуюча справами виконкому | G128: Олена ШОВГЕЛЯ | N128: Олена ШОВГЕЛЯ
